fUST/lending_fUST_20241113
["ID","MTS","AMOUNT","RATE_DAILY","PERIOD"]
[342125491,1731491432689,-465.31081941,0.00021646,2]
[342125493,1731491432699,-151.0,0.00021681,2]
[342125495,1731491432708,-179.379004,0.00021681,2]
[342125497,1731491432717,-179.379004,0.00021681,2]
[342125499,1731491432726,-600.0,0.00021681,2]
[342125501,1731491432736,-179.78810452,0.00021699,2]
[342125503,1731491432745,-500.0,0.00021699,2]
[342125505,1731491432755,-520.27411312,0.00021699,2]
[342125507,1731491432764,-204.95539256,0.00021699,2]
[342125509,1731491432774,-158.44839598,0.00021699,2]
[342125529,1731491432954,-227.4699414,0.00021699,2]
[342125531,1731491432963,-201.49176916,0.00021699,2]
[342125533,1731491432973,-500.0,0.00021699,2]
[342125535,1731491432983,-500.0,0.00021699,2]
[342125537,1731491432992,-500.0,0.00021699,2]
[342125539,1731491433001,-500.0,0.00021699,2]
[342125541,1731491433012,-500.0,0.00021699,2]
[342125543,1731491433021,-500.0,0.00021699,2]
[342125545,1731491433031,-500.0,0.00021699,2]
[342125547,1731491433040,-500.0,0.00021699,2]
[342125549,1731491433049,-458.15239448,0.00021699,2]
[342125551,1731491433059,-492.89151176,0.00021699,2]
[342125553,1731491433068,-387.0039271,0.00021699,2]
[342125555,1731491433080,-453.63575148,0.00021699,2]
[342125557,1731491433090,-500.0,0.00021699,2]
[342125559,1731491433100,-5649.67,0.000217,2]
[342125561,1731491433109,-52082.16218874,0.000217,2]
[342125568,1731491438522,-63000.00000045,0.000217,2]
[342125576,1731491440286,-470.87573959,0.000217,2]
[342125577,1731491440737,-19505.84241833,0.000217,2]
[342125601,1731491446326,-398.4603152,0.0002,2]
[342125602,1731491611425,1348.81497854,0.00030546,120]
[342125603,1731491611448,926.15069108,0.00030546,120]
[342125604,1731491611471,878.99433038,0.00030546,120]
[342125605,1731491636478,158.927006,0.00013973,2]
[342125607,1731491655391,9554.6558264,0.0003,120]
[342125608,1731491655415,2407.3441736,0.0003,120]
[342125611,1731492379553,158.927006,0.00013973,2]
[342128727,1731492632740,-554.72588855,0.00019109,2]
[342128741,1731492643537,-174.59819135,0.00019109,2]
[342128742,1731492643548,-3543.77843473,0.0001985,2]
[342128743,1731492643557,-500.0,0.0001995,2]
[342128744,1731492643567,-300.0,0.00019999,2]
[342128745,1731492643577,-300.0,0.00019999,2]
[342128746,1731492643586,-162.01693272,0.00019999,2]
[342128747,1731492643595,-165.87683464,0.00019999,2]
[342128748,1731492643605,-154.11154746,0.00019999,2]
[342128749,1731492643614,-217.07063905,0.00019999,2]
[342128750,1731492643624,-369.89119695,0.0002,2]
[342128751,1731492643633,-770.81051813,0.0002,2]
[342128752,1731492643643,-1169.27083333,0.0002,2]
[342128753,1731492643652,-2262.89755618,0.0002,2]
[342128754,1731492643664,-97737.10244382,0.0002,2]
[342128755,1731492643674,-294.032034,0.00020003,2]
[342128756,1731492643684,-500.0,0.00020498,2]
[342128757,1731492643693,-600.0,0.00021024,2]
[342128758,1731492643702,-150.0,0.00021089,2]
[342128759,1731492643712,-1367.663,0.00021089,2]
[342128760,1731492643721,-600.0,0.00021243,2]
[342128761,1731492643730,-3543.77843468,0.00021364,2]
[342128762,1731492643740,-600.0,0.00021462,2]
[342128763,1731492643749,-1154.32152811,0.00021681,2]
[342128764,1731492643759,-150.01,0.00021699,2]
[342128765,1731492643768,-1243.44691367,0.00021699,2]
[342128766,1731492643777,-21821.61625528,0.000217,2]
[342128767,1731492643789,-150.0,0.000217,2]
[342128768,1731492643800,-420.0,0.00021777,2]
[342128769,1731492643809,-6000.0,0.00021799,2]
[342128770,1731492643818,-423.52,0.00021799,2]
[342128771,1731492643827,-1085.42282297,0.00021799,2]
[342128772,1731492643837,-159.22895898,0.00021799,2]
[342128773,1731492643846,-491.04423841,0.00021799,2]
[342128774,1731492643855,-364.19187918,0.00021799,2]
[342128775,1731492643865,-17564.75043917,0.000218,10]
[342128776,1731492643874,-154276.65859061,0.000218,10]
[342128871,1731493080351,158.927006,0.00013973,2]
[342132413,1731493838733,-508.03,0.00018,2]
[342132414,1731493838743,-204.0,0.00019798,2]
[342132415,1731493838753,-291.1293633,0.00019798,2]
[342132420,1731493840643,-8.8706367,0.00019798,2]
[342132421,1731493840653,-1636.93047809,0.00019799,2]
[342132422,1731493843714,-264.46625028,0.00019799,2]
[342132423,1731493843730,-5907.80406322,0.00019799,2]
[342132426,1731493846585,-2086.04635027,0.00019799,2]
[342132438,1731493892871,158.927006,0.00013973,2]
[342132499,1731494034673,184.64051,0.00023836,120]
[342132509,1731494645716,158.927006,0.00013973,2]
[342132510,1731494657030,151.0,0.0003,120]
[342132516,1731494790011,1563.57997086,0.0003,120]
[342132600,1731495032139,-386.107891,0.00018745,2]
[342132601,1731495032149,-306.192109,0.0001886,2]
[342132602,1731495032168,-35.462743,0.0001886,2]
[342132603,1731495032178,-215.3307458,0.000196,2]
[342132604,1731495032189,-2652.44411609,0.000196,2]
[342132605,1731495032198,-359.73939391,0.000196,2]
[342132606,1731495032207,-300.0,0.00019682,2]
[342132607,1731495032215,-300.0,0.00019682,2]
[342132608,1731495032224,-688.28567584,0.00019683,2]
[342132609,1731495032233,-623.57627357,0.00019683,2]
[342132610,1731495032253,-52910.83591077,0.00019683,2]
[342132611,1731495032262,-500.0,0.000197,2]
[342132612,1731495032272,-500.0,0.000197,2]
[342132613,1731495032281,-502.14185909,0.000197,2]
[342132614,1731495032291,-500.0,0.000197,2]
[342132615,1731495032300,-501.10338782,0.000197,2]
[342132616,1731495032309,-188.95817546,0.00019783,2]
[342132617,1731495032318,-157.47,0.00019814,2]
[342132618,1731495032327,-264.2555229,0.00019824,2]
[342132619,1731495032337,-24900.0,0.00019824,2]
[342132620,1731495032346,-636.756469,0.00019883,2]
[342132621,1731495032357,-439.0925161,0.0001998,2]
[342132622,1731495032366,-1169.27083333,0.0002,2]
[342132623,1731495032377,-152.0,0.00020128,2]
[342132624,1731495032387,-503.59147237,0.00020248,2]
[342132625,1731495032396,-502.83671111,0.00020248,2]
[342132626,1731495032406,-294.6134475,0.00020248,2]
[342132627,1731495032415,-3182.91859559,0.00020377,2]
[342132628,1731495032424,-636.756469,0.00020568,2]
[342132629,1731495032434,-288.46,0.00021129,3]
[342132630,1731495032443,-865.4,0.00021129,3]
[342132631,1731495032453,-151.0,0.0002114,2]
[342132632,1731495032463,-2867.77486183,0.00021148,2]
[342132633,1731495032473,-150.0,0.00021208,2]
[342132634,1731495032482,-530.0,0.00021208,2]
[342132635,1731495032491,-2391.0,0.00021208,2]
[342132636,1731495032501,-1127.0,0.00021208,2]
[342132637,1731495032510,-151.0,0.00021237,2]
[342132638,1731495032519,-636.756469,0.00021253,2]
[342132639,1731495032528,-500.0,0.000213,2]
[342132640,1731495032537,-500.0,0.000213,2]
[342132641,1731495032547,-151.0,0.00021334,2]
[342132642,1731495032556,-151.0,0.00021431,2]
[342132643,1731495032566,-420.0,0.00021438,2]
[342132644,1731495032575,-629.807,0.00021489,2]
[342132645,1731495032585,-151.0,0.00021529,2]
[342132646,1731495032595,-343.73096689,0.00021599,2]
[342132647,1731495032607,-254.93431543,0.00021599,2]
[342132648,1731495032617,-93423.4505219,0.000216,2]
[342132707,1731495043166,-1169.27083333,0.0002,2]
[342132708,1731495043176,-500.0,0.00020376,2]
[342132709,1731495043185,-500.0,0.00020376,2]
[342132710,1731495043197,-500.0,0.00020376,2]
[342132711,1731495043207,-500.0,0.00020376,2]
[342132712,1731495043216,-388.38482481,0.00020376,2]
[342132713,1731495043226,-500.0,0.00020376,2]
[342132714,1731495043237,-500.0,0.00020376,2]
[342132715,1731495043252,-222.17374215,0.00020376,2]
[342132716,1731495043262,-500.0,0.00020376,2]
[342132717,1731495043271,-500.0,0.00020376,2]
[342132718,1731495043282,-500.0,0.00020376,2]
[342132719,1731495043291,-500.0,0.00020376,2]
[342132720,1731495043301,-500.0,0.00020376,2]
[342132721,1731495043311,-500.0,0.00020376,2]
[342132722,1731495043320,-500.0,0.00020376,2]
[342132723,1731495043329,-500.0,0.00020376,2]
[342132724,1731495043338,-500.0,0.00020376,2]
[342132725,1731495043347,-500.0,0.00020376,2]
[342132726,1731495043358,-500.0,0.00020376,2]
[342132727,1731495043367,-500.0,0.00020376,2]
[342132728,1731495043504,-500.0,0.00020376,2]
[342132729,1731495043514,-500.0,0.00020376,2]
[342132730,1731495043524,-500.0,0.00020376,2]
[342132731,1731495043533,-619.10451714,0.00020376,2]
[342132732,1731495043542,-500.0,0.00020376,2]
[342132733,1731495043551,-500.0,0.00020376,2]
[342132734,1731495043560,-500.0,0.00020376,2]
[342132735,1731495043569,-500.0,0.00020376,2]
[342132736,1731495043579,-314.58712611,0.00020376,2]
[342132737,1731495043588,-500.0,0.00020376,2]
[342132738,1731495043597,-500.0,0.00020376,2]
[342132739,1731495043608,-500.0,0.00020376,2]
[342132740,1731495043618,-500.0,0.00020376,2]
[342132741,1731495043627,-1505.82526208,0.000216,2]
[342132742,1731495043651,-20011.84386892,0.000216,2]
[342132743,1731495043660,-151.0,0.000216,2]
[342132744,1731495043670,-151.0,0.000216,2]
[342132745,1731495043679,-151.0,0.000216,2]
[342132746,1731495043688,-151.0,0.000216,2]
[342132747,1731495043697,-159.910332,0.000216,2]
[342132748,1731495043706,-151.0,0.000216,2]
[342132749,1731495043715,-151.0,0.000216,2]
[342132750,1731495043724,-151.0,0.000216,2]
[342132751,1731495043733,-151.0,0.000216,2]
[342132752,1731495043742,-151.0,0.000216,2]
[342132753,1731495043751,-189.045392,0.000216,2]
[342132754,1731495043760,-189.045392,0.000216,2]
[342132755,1731495043769,-151.0,0.000216,2]
[342132756,1731495043778,-162.971745,0.000216,2]
[342132757,1731495043787,-271.513242,0.000216,2]
[342132758,1731495043796,-271.513242,0.000216,2]
[342132759,1731495043805,-152.238519,0.000216,2]
[342132760,1731495043814,-151.0,0.000216,2]
[342132761,1731495043824,-151.0,0.000216,2]
[342132762,1731495043833,-151.0,0.000216,2]
[342132763,1731495043842,-151.0,0.00021626,2]
[342132764,1731495043851,-11397.91826706,0.000217,2]
[342132856,1731495405484,158.927006,0.00013973,2]
[342132863,1731495559973,5502.52,0.00027,60]
[342132875,1731496124271,-8554.43828597,0.000199,2]
[342132876,1731496124292,-300.0,0.00019999,2]
[342132877,1731496124313,-1169.27083333,0.0002,2]
[342132878,1731496124333,-999.999999,0.0002,2]
[342132879,1731496124354,-13976.2908817,0.00020225,2]
[342132945,1731496232263,-1169.27083333,0.0002,2]
[342132946,1731496232272,-441.15812383,0.00020225,2]
[342132973,1731496240072,-3098.67582877,0.00020225,2]
[342132974,1731496240083,-170.827426,0.00020336,2]
[342132975,1731496240093,-300.0,0.00021699,2]
[342132976,1731496240102,-458.85711722,0.000217,2]
[342132977,1731496240111,-8991.05141681,0.000217,2]
[342132978,1731496240122,-43770.22014599,0.000217,2]
[342132979,1731496240133,-6236.81017014,0.000217,2]
[342132980,1731496240142,-172.484,0.000217,2]
[342132981,1731496240152,-151.0,0.0002172,2]
[342132982,1731496240161,-1254.89025,0.00021789,2]
[342132983,1731496240171,-576.92,0.0002179,3]
[342132984,1731496240180,-1243.44691367,0.00021798,2]
[342132985,1731496240189,-6000.0,0.00021799,2]
[342132986,1731496240199,-976.8805407,0.00021799,2]
[342132987,1731496240208,-500.0,0.00021799,2]
[342132988,1731496240218,-368.28745846,0.00021799,2]
[342132989,1731496240227,-302.46374913,0.00021799,2]
[342132990,1731496240237,-500.0,0.00021799,2]
[342132991,1731496240246,-500.0,0.00021799,2]
[342132992,1731496240255,-500.0,0.00021799,2]
[342132993,1731496240265,-500.0,0.00021799,2]
[342132994,1731496240274,-500.0,0.00021799,2]
[342132995,1731496240283,-500.0,0.00021799,2]
[342132996,1731496240292,-425.14428695,0.00021799,2]
[342132997,1731496240302,-500.0,0.00021799,2]
[342132998,1731496240315,-500.0,0.00021799,2]
[342132999,1731496240325,-500.0,0.00021799,2]
[342133000,1731496240336,-500.0,0.00021799,2]
[342133001,1731496240346,-500.0,0.00021799,2]
[342133002,1731496240355,-500.0,0.00021799,2]
[342133003,1731496240364,-500.0,0.00021799,2]
[342133004,1731496240373,-500.0,0.00021799,2]
[342133005,1731496240383,-500.0,0.00021799,2]
[342133006,1731496240394,-500.0,0.00021799,2]
[342133007,1731496240403,-500.0,0.00021799,2]
[342133008,1731496240412,-500.0,0.00021799,2]
[342133009,1731496240422,-500.0,0.00021799,2]
[342133010,1731496240431,-500.0,0.00021799,2]
[342133011,1731496240439,-500.0,0.00021799,2]
[342133012,1731496240449,-500.0,0.00021799,2]
[342133013,1731496240458,-125.60806213,0.00021799,2]
[342133014,1731496240473,-374.39193787,0.00021799,2]
[342133015,1731496240482,-500.0,0.00021799,2]
[342133016,1731496240491,-351.5,0.00021799,2]
[342133017,1731496240501,-529.71293118,0.000218,2]
[342133018,1731496240510,-2140.66073095,0.000218,10]
[342133027,1731496243887,-2224.37393589,0.000218,10]
[342133030,1731496243899,-3124.84426397,0.000218,10]
[342133039,1731496246227,-3103.21616198,0.000218,10]
[342133050,1731496255963,158.927006,0.00013973,2]
[342133111,1731496954911,158.927006,0.00013973,2]
[342133112,1731496961335,194.137,0.0001569,2]
[342133227,1731497283397,45624.6962671,0.00027,120]
[342133228,1731497325463,590.79,0.00027,60]
[342133229,1731497326442,1597.49654672,0.00025,120]
[342133230,1731497326818,1967.95473571,0.00025,120]
[342133231,1731497327940,342.41509224,0.00024,120]
[342133279,1731497432474,-194.178,0.0001868,2]
[342133280,1731497432484,-1169.27083333,0.0002,2]
[342133281,1731497432493,-170.827427,0.00020741,2]
[342133282,1731497432502,-1644.6046794,0.00020741,2]
[342133283,1731497432512,-535.56,0.000208,7]
[342133284,1731497432521,-657.99,0.00021024,2]
[342133285,1731497432530,-2150.83114639,0.0002164,2]
[342133286,1731497432539,-194.203,0.0002167,2]
[342133287,1731497432549,-300.0,0.00021699,2]
[342133288,1731497432558,-1182.63904775,0.000217,2]
[342133289,1731497432572,-364.42295675,0.000217,2]
[342133290,1731497432584,-1153.48211351,0.000217,2]
[342133291,1731497432596,-299.45588199,0.000217,2]
[342133292,1731497432605,-10999.72836898,0.000217,2]
[342133293,1731497432615,-4998.29210648,0.000217,2]
[342133294,1731497432624,-3000.0,0.0002171,2]
[342133295,1731497432633,-3000.0,0.0002172,2]
[342133296,1731497432643,-3000.0,0.0002173,2]
[342133297,1731497432652,-3000.0,0.0002174,2]
[342133298,1731497432664,-3930.621444,0.0002175,2]
[342133299,1731497432674,-941.16775,0.00021789,2]
[342133300,1731497432684,-63000.00000045,0.00021799,2]
[342133301,1731497432693,-6000.0,0.00021799,2]
[342133302,1731497432702,-1243.44691367,0.00021799,2]
[342133303,1731497432712,-172.485,0.00021799,2]
[342133304,1731497432721,-879.19248663,0.00021799,2]
[342133305,1731497432731,-222.98887268,0.00021799,2]
[342133306,1731497432743,-241.77295978,0.00021799,2]
[342133307,1731497432752,-174.10330271,0.00021799,2]
[342133308,1731497432762,-530.73170792,0.00021799,2]
[342133309,1731497432771,-416.70595177,0.00021799,2]
[342133310,1731497432780,-57541.30528525,0.000218,10]
[342133311,1731497432804,-211.85741071,0.00021799,2]
[342133312,1731497432816,-240.49644289,0.000218,10]
[342133313,1731497435312,214.72418,0.00027,120]
[342133326,1731497440333,-793.39389295,0.0001858,2]
[342133327,1731497440474,-806.60610705,0.0001858,2]
[342133328,1731497440483,-305.90474481,0.0002175,2]
[342133329,1731497440493,-932.58518525,0.00021799,2]
[342133330,1731497440502,-23859.47034946,0.000218,10]
[342133331,1731497440512,-8150.78786251,0.000218,2]
[342133332,1731497440522,-186.0,0.000218,2]
[342133333,1731497440532,-3000.0,0.000218,2]
[342133334,1731497440542,-923.0,0.000218,2]
[342133335,1731497440551,-3000.0,0.0002181,2]
[342133336,1731497440561,-151.0,0.00021817,2]
[342133337,1731497440572,-3000.0,0.0002182,2]
[342133338,1731497440581,-151.0,0.00021828,2]
[342133339,1731497440591,-151.0,0.00021829,2]
[342133340,1731497440600,-151.0,0.00021829,2]
[342133341,1731497440610,-151.0,0.00021829,2]
[342133342,1731497440620,-151.0,0.00021829,2]
[342133343,1731497440629,-151.0,0.00021829,2]
[342133344,1731497440639,-151.0,0.00021829,2]
[342133345,1731497440648,-151.0,0.00021829,2]
[342133346,1731497440658,-151.0,0.00021829,2]
[342133347,1731497440670,-151.0,0.00021829,2]
[342133348,1731497440680,-151.0,0.00021829,2]
[342133349,1731497440689,-151.0,0.00021829,2]
[342133350,1731497440699,-151.0,0.00021829,2]
[342133351,1731497440709,-151.0,0.00021829,2]
[342133352,1731497440719,-151.0,0.0002183,2]
[342133353,1731497440728,-151.513288,0.0002183,2]
[342133354,1731497440738,-151.0,0.0002183,2]
[342133355,1731497440749,-151.0,0.0002183,2]
[342133356,1731497440758,-3000.0,0.0002183,2]
[342133357,1731497440768,-151.0,0.0002183,2]
[342133358,1731497440777,-151.0,0.0002183,2]
[342133359,1731497440915,-151.0,0.0002183,2]
[342133360,1731497440925,-151.0,0.0002183,2]
[342133361,1731497440934,-151.0,0.0002183,2]
[342133362,1731497440944,-170.140853,0.0002183,2]
[342133363,1731497440953,-170.140853,0.0002183,2]
[342133364,1731497440963,-244.361918,0.0002183,2]
[342133365,1731497440972,-244.361918,0.0002183,2]
[342133366,1731497440982,-151.0,0.0002183,2]
[342133367,1731497440991,-3000.0,0.0002184,2]
[342133368,1731497441002,-3000.0,0.0002185,2]
[342133369,1731497441011,-3000.0,0.0002186,2]
[342133370,1731497441020,-3000.0,0.0002187,2]
[342133371,1731497441030,-151.0,0.0002187,2]
[342133372,1731497441039,-151.0,0.0002187,2]
[342133373,1731497441049,-151.0,0.0002187,2]
[342133374,1731497441058,-151.0,0.0002187,2]
[342133375,1731497441067,-151.0,0.0002187,2]
[342133376,1731497441078,-151.0,0.0002187,2]
[342133377,1731497441087,-151.0,0.0002187,2]
[342133378,1731497441097,-151.0,0.0002187,2]
[342133379,1731497441107,-151.0,0.0002187,2]
[342133380,1731497441116,-151.0,0.0002187,2]
[342133381,1731497441125,-173.769301,0.0002187,2]
[342133382,1731497441135,-151.0,0.0002187,2]
[342133383,1731497441145,-151.0,0.0002187,2]
[342133384,1731497441155,-500.0,0.00021873,2]
[342133385,1731497441166,-500.0,0.00021873,2]
[342133386,1731497441176,-310.10699349,0.00021873,2]
[342133387,1731497441186,-500.0,0.00021873,2]
[342133388,1731497441195,-500.0,0.00021873,2]
[342133389,1731497441205,-500.0,0.00021873,2]
[342133390,1731497441216,-500.0,0.00021873,2]
[342133391,1731497441225,-502.32292742,0.00021873,2]
[342133392,1731497441234,-500.0,0.00021873,2]
[342133393,1731497441244,-151.0,0.00021873,2]
[342133394,1731497441254,-151.0,0.00021873,2]
[342133395,1731497441263,-241.858464,0.00021873,2]
[342133396,1731497441273,-244.361918,0.00021873,2]
[342133397,1731497441283,-244.361918,0.00021873,2]
[342133398,1731497441292,-151.0,0.0002188,2]
[342133399,1731497441301,-151.0,0.0002188,2]
[342133400,1731497441310,-151.0,0.0002188,2]
[342133401,1731497441321,-3000.0,0.0002188,2]
[342133402,1731497441331,-170.140853,0.0002188,2]
[342133403,1731497441340,-170.140853,0.0002188,2]
[342133404,1731497441350,-151.0,0.0002188,2]
[342133405,1731497441360,-3000.0,0.0002189,2]
[342133406,1731497441369,-9807.06369301,0.00021899,2]
[342133407,1731497441412,-43794.41116936,0.00021899,2]
[342133411,1731497461695,-6000.0,0.00021799,2]
[342133412,1731497461705,-631.81302016,0.00021873,2]
[342133413,1731497461714,-202.98424096,0.00021873,2]
[342133414,1731497461723,-13955.0861584,0.00021899,2]
[342133415,1731497461856,-15865.0,0.00021899,2]
[342133416,1731497461868,-387.57883,0.00021899,2]
[342133417,1731497462004,-1430690.88630203,0.00021899,2]
[342133418,1731497465103,200.0,0.00027,120]
[342133421,1731497468680,-218.27556139,0.00021873,2]
[342133422,1731497468689,-71.94645355,0.00021898,2]
[342133423,1731497468752,-228.05354645,0.00021898,2]
[342133424,1731497468761,-112577.47170851,0.00021899,2]
[342133494,1731497689389,158.927006,0.00013973,2]
[342133495,1731497741266,158.494202,0.00023836,80]
[342133496,1731497741480,158.494202,0.00023836,119]
[342133515,1731497872743,2609.7772742,0.00027,60]
[342133551,1731498062778,2000.0,0.00027,60]
[342133553,1731498109771,1000.0,0.00027,60]
[342133558,1731498248640,151.0,0.00027,60]
[342133559,1731498293964,1333.0,0.00026137,120]
[342133586,1731498437555,176.0,0.00027,60]
[342133587,1731498440870,158.927006,0.00013973,2]
[342133664,1731498636608,35403.37,0.00011,2]
[342133667,1731498638589,-342.16008959,0.00019899,2]
[342133668,1731498638599,-300.0,0.00019899,2]
[342133669,1731498638608,-300.0,0.00019899,2]
[342133670,1731498638617,-7542.97759183,0.000199,2]
[342133671,1731498638629,-3163.90484504,0.000199,2]
[342133672,1731498638638,-160.0,0.0002,2]
[342133673,1731498638647,-1169.27083333,0.0002,2]
[342133674,1731498638656,-554.7258885,0.00020824,2]
[342133675,1731498638666,-12485.9133854,0.00020826,2]
[342133676,1731498638675,-166.425,0.0002114,2]
[342133677,1731498638686,-4824.04736207,0.00021533,2]
[342133678,1731498638695,-1881.9772531,0.0002157,2]
[342133679,1731498638705,-416.0,0.0002167,2]
[342133680,1731498638714,-791.27323794,0.00021799,2]
[342133681,1731498638723,-3000.0,0.000218,2]
[342133682,1731498638732,-2547.96219231,0.0002181,2]
[342133683,1731498638748,-452.03780769,0.0002181,2]
[342133685,1731498638761,-6000.0,0.00021817,2]
[342133687,1731498638770,-272.54299877,0.00021817,2]
[342133689,1731498638779,-3000.0,0.0002182,2]
[342133690,1731498638788,-172.48589239,0.0002183,2]
[342133692,1731498638797,-3000.0,0.0002183,2]
[342133693,1731498638806,-3000.0,0.0002184,2]
[342133704,1731498638936,-3000.0,0.0002185,2]
[342133706,1731498638946,-3000.0,0.0002186,2]
[342133708,1731498638955,-3000.0,0.0002187,2]
[342133710,1731498638965,-500.0,0.00021873,2]
[342133712,1731498638974,-260.74844953,0.00021873,2]
[342133714,1731498638983,-500.0,0.00021873,2]
[342133716,1731498638995,-561.68773349,0.00021873,2]
[342133718,1731498639004,-501.47383952,0.00021873,2]
[342133720,1731498639015,-151.075,0.00021878,2]
[342133722,1731498639024,-3206.303,0.00021878,2]
[342133724,1731498639034,-500.249,0.00021878,2]
[342133726,1731498639047,-3000.0,0.0002188,2]
[342133728,1731498639056,-3000.0,0.0002189,2]
[342133730,1731498639067,-699.43888894,0.00021898,2]
[342133732,1731498639077,-169.24107185,0.00021898,2]
[342133734,1731498639087,-371.51219555,0.00021898,2]
[342133736,1731498639096,-291.69416624,0.00021898,2]
[342133738,1731498639106,-156.09221088,0.00021898,2]
[342133740,1731498639117,-500.0,0.00021898,2]
[342133742,1731498639127,-491.68269855,0.00021898,2]
[342133744,1731498639137,-483.5,0.00021898,2]
[342133746,1731498639147,-1010.30061736,0.00021898,2]
[342133748,1731498639156,-22147.93442933,0.00021899,2]
[342133874,1731498640605,-3732.32929747,0.00021899,2]
[342133948,1731498641448,158.494202,0.00023836,120]
[342133972,1731498646572,-293.19945781,0.00021899,2]
[342134002,1731498858906,396.0,0.00027,60]
[342134007,1731499077918,1333.0,0.00026137,120]
[342134009,1731499119658,158.927006,0.00013973,2]
[342134011,1731499328723,155.1,0.00018986,15]
[342134050,1731499800075,158.927006,0.00013973,2]
[342134052,1731499803698,1000.0,0.00027,60]
[342134075,1731499838720,-23400.92242805,0.00019597,2]
[342134076,1731499838904,-3025.34333465,0.00019597,2]
[342134077,1731499838913,-1646.73009648,0.00019697,2]
[342134078,1731499838923,-181.69533251,0.00019796,2]
[342134079,1731499838932,-509.01595213,0.00019796,2]
[342134080,1731499838941,-784.96,0.00019796,2]
[342134081,1731499838950,-500.0,0.00019796,2]
[342134082,1731499838959,-500.0,0.00019796,2]
[342134083,1731499838968,-500.0,0.00019796,2]
[342134084,1731499838977,-500.0,0.00019796,2]
[342134085,1731499838986,-501.94051433,0.00019796,2]
[342134086,1731499838995,-6930.32,0.00019796,2]
[342134087,1731499839005,-500.0,0.00019796,2]
[342134088,1731499839014,-509.54482682,0.00019796,2]
[342134089,1731499839024,-1605.83,0.00019796,2]
[342134090,1731499839033,-1070.28,0.00019796,2]
[342134091,1731499839042,-500.0,0.00019796,2]
[342134092,1731499839051,-500.0,0.00019796,2]
[342134093,1731499839061,-514.16038437,0.00019796,2]
[342134094,1731499839070,-500.0,0.00019796,2]
[342134095,1731499839079,-1111.56,0.00019796,2]
[342134096,1731499839087,-500.0,0.00019796,2]
[342134097,1731499839096,-500.0,0.00019796,2]
[342134098,1731499839105,-500.0,0.00019796,2]
[342134099,1731499839114,-1195.06,0.00019796,2]
[342134100,1731499839124,-500.0,0.00019796,2]
[342134101,1731499839133,-500.0,0.00019797,2]
[342134102,1731499839142,-500.0,0.00019797,2]
[342134103,1731499839151,-500.0,0.00019797,2]
[342134104,1731499839160,-502.0831643,0.00019797,2]
[342134105,1731499839169,-500.0,0.00019797,2]
[342134106,1731499839179,-500.0,0.00019797,2]
[342134107,1731499839188,-500.0,0.00019797,2]
[342134108,1731499839197,-254.81711438,0.00019797,2]
[342134109,1731499839207,-500.0,0.00019797,2]
[342134110,1731499839216,-500.0,0.00019797,2]
[342134111,1731499839225,-500.0,0.00019797,2]
[342134112,1731499839235,-500.0,0.00019797,2]
[342134113,1731499839244,-500.0,0.00019797,2]
[342134114,1731499839254,-500.0,0.00019797,2]
[342134115,1731499839264,-500.0,0.00019797,2]
[342134116,1731499839274,-500.0,0.00019797,2]
[342134117,1731499839283,-500.0,0.00019797,2]